bitfinex-derivatives/quotes_ETHF0:USTF0_20241102
["timestamp","ask_amount","ask_price","bid_price","bid_amount"]
[1730563002106,0.28146,2487.6,2487.5,1.64766]
[1730563002315,1.72986372,2487.8,2487.7,0.28145]
[1730563007116,0.28146,2487.7,2487.6,0.28145]
[1730563012322,1.72986372,2487.8,2487.7,0.28145]
[1730563013321,1.44841372,2487.8,2487.7,0.28145]
[1730563014017,1.72985372,2487.8,2487.7,0.28145]
[1730563014313,1.44841372,2487.8,2487.7,0.28145]
[1730563014521,0.4484,2487.9,2487.8,0.28144]
[1730563015320,1.72982372,2488.1,2487.6,5.35987372]
[1730563015515,2.18082372,2488.1,2488.0,0.28142]
[1730563016122,0.28142,2488.0,2487.9,0.28142]
[1730563016319,1.89941372,2488.1,2488.0,0.28142]
[1730563017026,2.18081372,2488.1,2488.0,0.28142]
[1730563017415,1.89941372,2488.1,2488.0,0.28142]
[1730563017723,1.44841372,2488.3,2488.2,0.28139]
[1730563018124,0.28138,2488.4,2488.3,0.28138]
[1730563018524,0.28138,2488.4,2488.0,1.3211]
[1730563018827,1.44841372,2488.3,2488.2,0.28139]
[1730563020023,1.72979372,2488.3,2488.2,0.28139]
[1730563020525,1.44841372,2488.3,2488.2,0.28139]
[1730563020722,1.72979372,2488.3,2488.2,0.28139]
[1730563021630,1.44841372,2488.3,2488.2,0.28139]
[1730563022531,5.38867372,2488.5,2488.3,0.28137]
[1730563023022,5.10731372,2488.5,2488.0,2.76951372]
[1730563023229,0.28137,2488.4,2488.2,0.28138]
[1730563024323,5.10731372,2488.5,2488.0,2.76951372]
[1730563024324,5.38868372,2488.5,2488.4,0.28137]
[1730563024630,5.38868372,2488.5,2488.0,3.47305372]
[1730563024834,5.38868372,2488.5,2488.3,0.28137]
[1730563025222,5.38868372,2488.5,2488.0,2.76951372]
[1730563025533,0.28137,2488.4,2488.3,0.28138]
[1730563031336,1.89951372,2488.5,2488.4,0.28137]
[1730563031634,0.28137,2488.4,2488.3,0.28138]
[1730563032224,2.18088372,2488.5,2488.1,0.2814]
[1730563032533,1.89951372,2488.5,2488.3,0.28138]
[1730563032728,0.28137,2488.4,2488.3,0.28138]
[1730563034724,2.63449977,2488.8,2488.3,1.44841372]
[1730563034923,2.63449977,2488.8,2488.6,0.28135]
[1730563034924,0.4571,2488.7,2488.6,0.28135]
[1730563041734,1.19972,2488.9,2488.5,4.65621372]
[1730563041938,1.63662,2488.9,2488.8,0.28133]
[1730563042339,1.17812,2488.9,2488.8,0.28133]
[1730563042943,0.8968,2488.9,2488.8,0.28133]
[1730563043135,3.2078,2489.1,2489.0,0.2813]
[1730563047744,0.73119,2489.2,2488.9,2.2221]
[1730563048043,3.2078,2489.3,2489.1,1.44841372]
[1730563048243,3.2078,2489.3,2489.2,0.28128]
[1730563048748,0.4398,2489.4,2489.2,4.0176]
[1730563049047,0.28124,2489.6,2489.5,0.28124]
[1730563049238,0.4398,2489.6,2489.5,1.72965372]
[1730563050243,3.2078,2489.7,2489.5,1.44841372]
[1730563050550,3.2078,2489.7,2489.6,0.28123]
[1730563051049,3.48902,2489.7,2489.6,0.28123]
[1730563051546,3.2078,2489.7,2489.6,0.28123]
[1730563051746,0.4398,2489.8,2489.7,0.28122]
[1730563051950,0.4398,2489.8,2489.7,1.72963372]
[1730563052249,2.34541372,2490.2,2489.7,1.44841372]
[1730563052444,2.34541372,2490.2,2490.0,0.28119]
[1730563052445,0.4271,2490.1,2490.0,0.28119]
[1730563052646,0.4271,2490.1,2489.8,2.74191372]
[1730563052855,0.28119,2490.0,2489.8,1.57471]
[1730563053155,0.4271,2490.1,2489.8,1.2935]
[1730563053341,0.4271,2490.1,2489.9,0.2812]
[1730563053651,0.28119,2490.0,2489.8,1.5747]
[1730563053841,0.28119,2490.0,2489.9,0.2812]
[1730563054243,0.70828,2490.1,2489.9,1.44841372]
[1730563054447,0.28119,2490.0,2489.9,1.44841372]
[1730563054851,0.28119,2490.0,2489.9,1.72961372]
[1730563056442,0.28119,2490.0,2489.8,1.5747]
[1730563056642,0.28119,2490.0,2489.7,3.2078]
[1730563056643,1.44841372,2490.0,2489.7,3.2078]
[1730563056842,0.4271,2490.1,2489.8,0.28121]
[1730563057054,0.28119,2490.0,2489.9,0.2812]
[1730563057443,0.28119,2490.0,2489.7,4.65621372]
[1730563057444,0.70828,2490.1,2490.0,0.28119]
[1730563057649,0.4271,2490.1,2490.0,0.28119]
[1730563057851,0.4271,2490.1,2490.0,1.72960372]
[1730563058047,0.4271,2490.1,2489.7,4.65621372]
[1730563058243,0.4271,2490.1,2489.6,0.864]
[1730563058244,0.4227,2490.0,2489.6,5.52021372]
[1730563058445,0.28121,2489.9,2489.7,0.28122]
[1730563058640,0.28122,2489.7,2489.6,2.59364372]
[1730563058844,0.28122,2489.8,2489.6,2.59364372]
[1730563059047,0.28122,2489.8,2489.7,0.28122]
[1730563059660,0.28121,2489.9,2489.7,0.28122]
[1730563060150,0.8495,2490.0,2489.7,0.28122]
[1730563060151,1.13069,2490.0,2489.7,1.44841372]
[1730563060349,1.13069,2490.0,2489.9,1.72961372]
[1730563060350,0.4227,2490.0,2489.9,1.72961372]
[1730563060748,0.7039,2490.0,2489.8,1.72961372]
[1730563061049,0.7039,2490.0,2489.9,0.2812]
[1730563062652,0.4227,2490.0,2489.9,0.2812]
[1730563063053,0.4227,2490.0,2489.9,0.7072]
[1730563063350,0.28118,2490.1,2489.9,0.8888]
[1730563063553,0.28118,2490.2,2490.0,0.28118]
[1730563063756,0.28118,2490.1,2490.0,0.28118]
[1730563066941,0.28118,2490.1,2490.0,0.28119]
[1730563067147,0.28117,2490.2,2490.0,0.28119]
[1730563067645,1.88811372,2490.3,2489.9,1.3089]
[1730563067850,0.28116,2490.3,2490.2,0.28117]
[1730563068152,0.4469,2490.4,2490.3,0.28116]
[1730563069457,0.4203,2490.5,2490.1,1.44841372]
[1730563069646,0.4203,2490.5,2490.4,0.28114]
[1730563070858,0.8838,2490.5,2490.4,0.28114]
[1730563071250,1.16493,2490.5,2490.4,0.28114]
[1730563071452,1.16494,2490.5,2490.3,0.28115]
[1730563071651,1.16494,2490.5,2490.1,1.44841372]
[1730563071953,1.16494,2490.5,2490.4,0.28114]
[1730563073354,0.8838,2490.5,2490.4,0.28114]
[1730563073853,1.16493,2490.5,2490.4,0.28114]
[1730563074553,0.8838,2490.5,2490.4,0.28114]
[1730563074860,0.4635,2490.5,2490.4,0.28114]
[1730563075055,0.28114,2490.4,2490.3,2.33151372]
[1730563075257,0.28114,2490.4,2490.3,0.4296]
[1730563075452,0.28114,2490.4,2490.3,0.71076]
[1730563075649,0.28114,2490.4,2490.3,0.4296]
[1730563076158,0.28114,2490.4,2490.3,0.71076]
[1730563076549,0.4635,2490.5,2490.2,0.4336]
[1730563076756,0.28116,2490.3,2490.2,0.4336]
[1730563077456,0.28116,2490.3,2490.2,0.71477]
[1730563077853,0.4513,2490.4,2490.1,1.72958372]
[1730563078159,0.73247,2490.2,2490.1,1.72958372]
[1730563078862,0.73247,2490.2,2490.1,0.28117]
[1730563079654,0.28118,2490.1,2490.0,1.65118]
[1730563079854,0.28118,2490.1,2490.0,0.4607]
[1730563080061,0.4513,2490.2,2490.0,1.90911372]
[1730563080254,0.28118,2490.1,2490.0,2.19029372]
[1730563080559,0.4513,2490.2,2489.9,3.6674]
[1730563080760,0.28119,2490.0,2489.9,0.2812]
[1730563081554,0.28119,2490.0,2489.8,1.90801372]
[1730563081555,0.4513,2490.2,2489.8,1.44841372]
[1730563081754,0.28121,2489.8,2489.7,2.36121372]
[1730563083064,0.28121,2489.8,2489.7,2.64243372]
[1730563083760,4.29801,2489.8,2489.7,1.72963372]
[1730563084059,4.29801,2489.8,2489.6,3.48902]
[1730563084060,0.28122,2489.7,2489.6,3.48902]
[1730563084461,0.28122,2489.7,2489.6,3.94152]
[1730563084666,0.28122,2489.8,2489.7,0.28122]
[1730563085060,0.4337,2489.9,2489.8,0.28121]
[1730563085265,0.4337,2489.9,2489.8,2.17052372]
[1730563086370,0.4382,2490.2,2490.0,0.28119]
[1730563086564,0.4595,2490.1,2490.0,1.72960372]
[1730563087760,0.28118,2490.2,2490.1,0.28118]
[1730563087964,0.71778,2490.2,2490.1,0.28118]
[1730563088865,0.71778,2490.2,2490.0,1.72959372]
[1730563090159,0.28118,2490.1,2490.0,1.72959372]
[1730563091971,0.28118,2490.1,2490.0,1.72960372]
[1730563092362,0.28118,2490.1,2490.0,1.44841372]
[1730563092569,0.28118,2490.1,2490.0,1.72960372]
[1730563092967,0.4366,2490.2,2489.9,0.4485]
[1730563093274,0.28119,2490.0,2489.9,0.7297]
[1730563093663,0.4366,2490.2,2489.9,0.7297]
[1730563093664,3.07109977,2490.2,2489.9,0.7297]
[1730563093969,0.28119,2490.1,2489.9,0.7297]
[1730563094868,0.28119,2490.0,2489.9,0.7297]
[1730563095472,0.28119,2490.0,2489.9,0.4485]
[1730563095775,0.28119,2490.0,2489.9,0.7297]
[1730563095967,0.28119,2490.0,2489.9,0.4485]
[1730563096269,0.28119,2490.0,2489.9,0.7297]
[1730563096468,0.28119,2490.0,2489.9,0.4485]
[1730563096670,0.28119,2490.0,2489.9,0.7297]
[1730563097577,0.28119,2490.0,2489.9,0.4485]
[1730563098072,0.28119,2490.0,2489.9,0.7297]
[1730563098570,0.28119,2490.0,2489.9,0.4485]
[1730563099278,3.08049977,2490.0,2489.8,0.4409]
[1730563099471,0.7319,2489.9,2489.8,0.72211]
[1730563100074,0.7319,2489.9,2489.8,0.4409]
[1730563100274,0.7319,2489.9,2489.8,0.72211]
[1730563100673,0.7319,2489.9,2489.8,0.98219677]
[1730563101380,0.7319,2489.9,2489.8,1.26340677]
[1730563104967,0.7319,2489.9,2489.8,0.72211]
[1730563105169,0.7319,2489.9,2489.8,1.26344898]
[1730563107374,0.28119,2490.0,2489.9,0.2812]
[1730563107573,3.34087977,2490.1,2490.0,0.28119]
[1730563108474,0.70638,2490.1,2490.0,0.28119]
[1730563110378,0.70638,2490.1,2489.8,1.88931372]
[1730563110577,0.4252,2490.1,2489.9,0.5412545]
[1730563110783,5.08141372,2490.1,2489.6,1.05375507]
[1730563110991,0.2812,2489.9,2489.8,0.8982]
[1730563111291,0.2812,2489.9,2489.8,1.439485]
[1730563112178,0.2812,2489.9,2489.8,0.8982]
[1730563112376,0.2812,2489.9,2489.8,1.4394896]
[1730563113377,0.2812,2489.9,2489.8,1.7206996]
[1730563114183,0.2812,2489.9,2489.8,1.4394896]
[1730563114783,0.2812,2489.9,2489.8,1.7206996]
[1730563115985,0.2812,2489.9,2489.8,1.17941]
[1730563122897,0.2812,2489.9,2489.8,1.72110604]
[1730563124100,0.2812,2489.9,2489.8,2.58814963]
[1730563125309,2.91569977,2490.0,2489.9,0.2812]
[1730563125508,2.91569977,2490.0,2489.9,0.82289604]
[1730563126501,2.91569977,2490.0,2489.9,0.82328626]
[1730563128100,2.63449977,2490.0,2489.9,0.82328626]
[1730563128300,2.63449977,2490.0,2489.9,1.72961372]
[1730563128507,3.05969977,2490.1,2490.0,0.28119]
[1730563128699,2.63449977,2490.2,2490.0,7.92680061]
[1730563128902,2.63449977,2490.3,2490.1,6.92458689]
[1730563129210,2.91564977,2490.4,2490.3,0.28116]
[1730563129507,2.63449977,2490.4,2490.3,2.27141315]
[1730563130207,3.07149977,2490.5,2490.3,1.99025315]
[1730563130407,3.07149977,2490.5,2490.4,0.28114]
[1730563130709,3.07149977,2490.5,2490.4,0.72924]
[1730563131007,0.437,2490.5,2490.4,0.72924]
[1730563131201,3.07102008,2490.5,2490.4,0.72924]
[1730563133308,0.437,2490.5,2490.4,0.72924]
[1730563140505,0.71813,2490.5,2490.4,0.72924]
[1730563141005,0.28116,2490.3,2490.2,0.28117]
[1730563142309,0.28117,2490.2,2490.1,1.15447]
[1730563142518,0.28118,2490.1,2490.0,0.70958]
[1730563142815,0.73727,2490.2,2490.1,0.28118]
[1730563143409,0.4561,2490.2,2490.1,0.28118]
[1730563143613,2.15123372,2490.6,2490.1,1.44841372]
[1730563143614,3.05732008,2490.5,2490.1,1.44841372]
[1730563143816,1.44841372,2490.2,2489.7,2.63438768]
[1730563144107,1.44841372,2489.9,2489.7,0.28122]
[1730563144312,0.443,2489.8,2489.7,0.28122]
[1730563145312,5.84182008,2490.0,2489.7,1.44841372]
[1730563145506,3.96232008,2490.1,2489.9,0.2812]
[1730563145706,0.28119,2490.0,2489.8,0.28121]
[1730563145901,0.28119,2490.0,2489.6,1.3148]
[1730563145902,2.63402008,2490.0,2489.6,1.3148]
[1730563146204,0.28121,2489.9,2489.7,0.28122]
[1730563146405,2.91522008,2490.0,2489.8,0.28121]
[1730563146606,0.2812,2490.0,2489.8,0.28121]
[1730563146806,2.91522008,2490.0,2489.8,0.28121]
[1730563147105,0.2812,2490.0,2489.8,0.28121]
[1730563147812,0.2812,2490.0,2489.7,1.72963372]
[1730563148213,0.2812,2489.9,2489.7,1.72963372]
[1730563148714,5.4107338,2490.1,2489.7,1.72963372]
[1730563148715,2.91521008,2490.0,2489.8,0.28121]
[1730563148914,0.28119,2490.0,2489.8,0.28121]
[1730563149116,2.91521008,2490.0,2489.9,0.4509]
[1730563149315,0.28119,2490.0,2489.9,0.4509]
[1730563149713,4.24350008,2490.1,2489.9,0.7321]
[1730563150307,0.28119,2490.0,2489.9,0.7321]
[1730563150514,3.96232008,2490.1,2489.9,0.4509]
[1730563150713,3.07702008,2490.1,2490.0,0.73139]
[1730563151019,0.72418,2490.1,2490.0,0.4502]
[1730563152416,0.72418,2490.1,2490.0,0.73139]
[1730563155517,0.72418,2490.1,2490.0,0.4502]
[1730563156025,0.2812,2490.0,2489.8,0.2812]
[1730563156221,0.2812,2489.9,2489.8,0.2812]
[1730563156419,0.443,2490.1,2489.8,0.2812]
[1730563156622,0.2812,2489.9,2489.8,0.2812]
[1730563157023,0.2812,2490.0,2489.8,0.2812]
[1730563157325,0.2812,2489.9,2489.8,0.28121]
[1730563159428,0.443,2490.1,2489.9,0.2812]
[1730563159429,0.2812,2490.0,2489.9,0.2812]
[1730563159824,0.443,2490.1,2489.8,0.2812]
[1730563159825,0.28121,2489.9,2489.8,0.2812]
[1730563160033,2.91518008,2490.3,2490.2,0.28117]
[1730563160227,0.28118,2490.1,2490.0,0.28118]
[1730563160528,1.72960372,2490.1,2490.0,0.28119]
[1730563161024,1.44841372,2490.1,2490.0,0.28119]
[1730563161324,0.28117,2490.2,2490.1,0.28118]
[1730563170833,0.2812,2490.0,2489.9,0.28119]
[1730563172230,0.72459,2490.1,2490.0,0.28119]
[1730563172434,0.4434,2490.1,2490.0,0.28119]
[1730563172640,0.72458,2490.1,2490.0,0.28119]
[1730563183549,0.2812,2490.0,2489.9,0.28119]
[1730563183752,0.72458,2490.1,2490.0,0.28119]
[1730563184249,0.4434,2490.1,2489.7,1.7453]
[1730563184551,0.2812,2490.0,2489.9,0.28119]
[1730563186063,0.2812,2490.0,2489.7,1.16451]
[1730563186064,0.28121,2489.8,2489.7,1.16451]
[1730563186355,1.72962372,2489.8,2489.7,1.16451]
[1730563186744,2.15612372,2489.8,2489.7,1.16451]
[1730563188245,2.15612372,2489.8,2489.7,0.8833]
[1730563188751,1.87491372,2489.8,2489.6,0.73923]
[1730563188946,0.28122,2489.7,2489.6,0.73923]
[1730563189145,2.15613372,2489.8,2489.7,0.28122]
[1730563189338,1.87491372,2489.8,2489.6,0.458]
[1730563189651,0.28122,2489.7,2489.6,0.73923]
[1730563189846,0.28126,2489.4,2489.3,1.05375507]
[1730563190047,0.28127,2489.3,2489.2,1.05375507]
[1730563190247,1.16667,2489.3,2489.2,1.05375507]
[1730563190548,1.16667,2489.3,2489.2,0.28128]
[1730563190849,1.16668,2489.3,2489.2,0.28128]
[1730563191647,1.44841372,2489.4,2489.1,0.4363]
[1730563191848,4.5196338,2489.5,2489.4,0.28126]
[1730563192147,2.63402008,2489.5,2489.4,0.28126]
[1730563192354,2.63402008,2489.5,2489.4,4.29806]
[1730563192549,1.72964372,2489.7,2489.6,0.28123]
[1730563193646,1.72964372,2489.7,2489.5,1.3353]
[1730563193953,1.72964372,2489.7,2489.5,1.61654]
[1730563194752,1.72964372,2489.7,2489.6,0.28123]
[1730563195151,1.72964372,2489.7,2489.5,1.61654]
[1730563195350,1.72964372,2489.7,2489.5,1.19194]
[1730563195550,0.28123,2489.6,2489.5,1.19194]
[1730563195746,1.44841372,2489.7,2489.5,0.9107]
[1730563195950,2.16683372,2489.8,2489.7,0.28122]
[1730563196557,1.88561372,2489.8,2489.6,0.4277]
[1730563196854,0.28122,2489.7,2489.6,0.70893]
[1730563197352,1.72963372,2489.7,2489.6,0.70893]
[1730563197860,1.44841372,2489.7,2489.6,0.70893]
[1730563198652,1.72963372,2489.7,2489.6,0.70893]
[1730563199256,1.44841372,2489.7,2489.6,0.70893]
[1730563200360,0.71842,2489.8,2489.6,0.70893]
[1730563200859,0.4372,2489.8,2489.6,0.70893]
[1730563201253,0.28122,2489.7,2489.6,0.70893]
[1730563202958,0.2812,2490.0,2489.8,0.2812]
[1730563203264,0.28118,2490.1,2489.9,5.31650928]
[1730563203455,0.28118,2490.1,2490.0,0.54062712]
[1730563203958,0.28117,2490.2,2490.0,0.54062712]
[1730563204158,0.28117,2490.2,2490.1,0.54062712]
[1730563204365,15.82760445,2491.0,2489.9,3.6301]
[1730563204559,4.5379,2491.0,2490.0,0.54028049]
[1730563204862,0.28112,2490.7,2490.3,0.28115]
[1730563205158,0.28112,2490.7,2490.4,0.70024]
[1730563205559,4.5379,2491.0,2490.4,0.70024]
[1730563205858,0.28111,2490.8,2490.4,0.70024]
[1730563206160,0.2811,2490.8,2490.4,0.70023]
[1730563206361,0.2811,2490.8,2490.5,0.28113]
[1730563207662,0.28112,2490.7,2490.4,0.28114]
[1730563207863,4.5379,2491.0,2490.2,0.455]
[1730563208167,0.28111,2490.8,2490.5,0.28113]
[1730563211365,0.28111,2490.8,2490.6,0.28112]
[1730563213064,7.16406734,2491.0,2490.2,0.455]
[1730563213065,2.90725734,2490.9,2490.3,0.98406]
[1730563213268,0.28109,2490.9,2490.7,0.2811]
[1730563213466,7.16406734,2491.0,2490.2,3.6628]
[1730563213666,1.3301,2491.0,2490.9,0.28109]
[1730563213977,3.15140081,2491.5,2491.3,0.28104]
[1730563213978,2.62616734,2491.4,2491.3,0.28104]
[1730563214267,0.8453,2491.4,2491.3,0.28104]
[1730563215869,0.28104,2491.3,2491.2,0.28104]
[1730563216176,1.12634,2491.4,2491.2,0.28105]
[1730563216467,0.28105,2491.3,2491.1,0.28106]
[1730563217379,0.8453,2491.4,2490.8,0.4354]
[1730563217558,0.8453,2491.4,2491.0,0.28107]
[1730563217559,0.28106,2491.2,2491.0,0.28107]
[1730563217765,0.28106,2491.2,2491.1,0.28107]
[1730563217964,0.28106,2491.2,2490.8,0.4354]
[1730563218172,0.98496309,2491.4,2490.5,0.98397]
[1730563218173,0.28108,2491.0,2490.5,0.98397]
[1730563218481,1.3372,2490.9,2490.6,0.4354]
[1730563218770,1.3372,2490.9,2490.8,0.2811]
[1730563219172,1.61829,2490.9,2490.8,0.2811]
[1730563219470,1.3372,2490.9,2490.8,0.2811]
[1730563219660,1.61829,2490.9,2490.8,0.2811]
[1730563220266,1.61829,2490.9,2490.6,0.4354]
[1730563220267,1.3372,2490.9,2490.6,0.4354]
[1730563220469,1.3372,2490.9,2490.3,3.6487]
[1730563220673,0.28112,2490.7,2490.4,0.4588]
[1730563220969,1.3372,2490.9,2490.4,0.4588]
[1730563221176,0.28112,2490.6,2490.5,0.28113]
[1730563221472,1.47606706,2490.9,2490.4,0.4588]
[1730563221673,0.28112,2490.7,2490.5,0.28113]
[1730563222473,0.28112,2490.7,2490.6,0.28112]
[1730563223066,0.28112,2490.7,2490.4,0.4588]
[1730563223271,0.28112,2490.7,2490.5,0.28112]
[1730563223868,0.4283,2490.6,2490.5,0.28112]
[1730563237092,0.8966,2490.9,2490.8,0.2811]
[1730563237288,0.436,2491.0,2490.9,0.28109]
[1730563238094,0.4458,2491.1,2490.8,0.4383]
[1730563238290,0.4458,2491.1,2491.0,0.28108]
[1730563249711,3.35303734,2491.1,2491.0,0.28108]
[1730563250013,0.72687,2491.1,2491.0,0.28108]
[1730563250910,3.35303734,2491.1,2491.0,0.28108]
[1730563252805,0.28108,2491.0,2490.9,0.28108]
[1730563253011,1.17708,2491.0,2490.9,0.28108]
[1730563253207,0.896,2491.0,2490.9,0.28108]
[1730563254609,1.17708,2491.0,2490.9,0.28108]
[1730563254822,0.896,2491.0,2490.9,0.28108]
[1730563256422,3.80324734,2491.0,2490.9,0.28108]
[1730563256917,3.52216734,2491.0,2490.9,0.28108]
[1730563257214,3.80324734,2491.0,2490.8,0.4383]
[1730563257411,3.80324734,2491.0,2490.8,0.71939]
[1730563257412,0.28109,2490.9,2490.8,0.71939]
[1730563258118,3.52216734,2491.0,2490.8,0.4383]
[1730563258313,3.80324734,2491.0,2490.9,0.28109]
[1730563258522,3.80324734,2491.0,2490.8,0.4383]
[1730563258714,3.80324734,2491.0,2490.8,0.7194]
[1730563258715,0.28109,2490.9,2490.8,0.7194]
[1730563259518,2.90725734,2490.9,2490.8,0.2811]
[1730563260314,2.90725734,2490.9,2490.6,0.4378]
[1730563260315,0.28111,2490.7,2490.6,0.4378]
[1730563260718,0.28111,2490.7,2490.6,0.71892]
[1730563260920,1.15331,2490.7,2490.6,0.71892]
[1730563261423,0.8722,2490.7,2490.6,0.71892]
[1730563262716,2.62616734,2490.9,2490.8,0.2811]
[1730563263019,5.83396734,2491.0,2490.9,0.28109]
[1730563263211,5.83396734,2491.0,2490.9,0.71019]
[1730563263414,5.83396734,2491.0,2490.9,1.13779]
[1730563263615,2.62616734,2491.0,2490.9,1.13779]
[1730563265213,3.51256734,2491.2,2490.9,0.8567]
[1730563265418,3.51256734,2491.2,2491.1,0.28107]
[1730563265622,3.05326734,2491.2,2491.1,0.28107]
[1730563266324,0.4271,2491.2,2491.1,0.28107]
[1730563269118,3.33431734,2491.2,2491.1,0.28107]
[1730563269524,0.28108,2491.0,2490.8,3.48889]
[1730563269724,0.4586,2490.9,2490.5,4.25395096]
[1730563269916,1.44657043,2490.8,2490.6,0.82212576]
[1730563270125,0.4243,2490.7,2490.6,0.28112]
[1730563270417,0.4243,2490.7,2490.6,0.82226574]
[1730563270819,0.70541,2490.7,2490.6,0.82226574]
[1730563271423,0.70541,2490.7,2490.5,3.6474]
[1730563271424,0.4243,2490.7,2490.5,3.6474]
[1730563271626,0.70542,2490.7,2490.6,0.28112]
[1730563271827,0.4243,2490.7,2490.6,0.28112]
[1730563272023,0.70541,2490.7,2490.6,0.28112]
[1730563273019,0.28112,2490.6,2490.5,3.92852]
[1730563273227,0.70542,2490.7,2490.5,4.46983255]
[1730563273431,0.4485,2490.6,2490.5,3.92852]
[1730563273724,0.4485,2490.6,2490.5,4.46983635]
[1730563274317,0.4485,2490.6,2490.5,0.54131635]
[1730563274318,2.17619043,2490.6,2490.5,0.54131635]
[1730563274522,4.52123777,2490.6,2490.3,0.4443]
[1730563274730,4.80236777,2490.6,2490.3,0.4443]
[1730563274930,4.80236777,2490.6,2490.4,0.28114]
[1730563275132,4.80236777,2490.6,2490.4,0.28113]
[1730563275331,1.89507043,2490.6,2490.3,0.4443]
[1730563275536,0.4485,2490.6,2490.5,0.28113]
[1730563276330,3.05046734,2490.7,2490.6,0.28112]
[1730563276526,3.08856734,2490.9,2490.8,0.2811]
[1730563276931,0.4624,2490.9,2490.8,0.2811]
[1730563277231,3.08856734,2490.9,2490.8,0.2811]
[1730563277428,4.07273777,2491.0,2490.9,0.28109]
[1730563278527,1.44657043,2491.0,2490.9,0.28109]
[1730563281137,4.35381777,2491.0,2490.8,0.28109]
[1730563281334,2.1053265,2490.9,2490.8,0.28109]
[1730563281833,2.1053265,2490.9,2490.8,0.82233756]
[1730563283341,2.1053265,2490.9,2490.8,0.82243842]
[1730563283650,0.2811,2490.8,2490.7,0.2811]
[1730563283942,2.54134329,2490.8,2490.7,0.82265864]
[1730563284151,2.54139044,2490.8,2490.7,0.82265864]
[1730563286347,2.5413939,2490.8,2490.7,0.82265864]
[1730563287243,2.8224939,2490.8,2490.7,0.2811]
[1730563287549,2.5413939,2490.8,2490.7,0.82280602]
[1730563287747,2.9885939,2490.8,2490.7,0.82280602]
[1730563288544,2.9885939,2490.8,2490.7,0.82291278]
[1730563289847,2.98854605,2490.8,2490.7,0.82291369]
[1730563290250,2.98851938,2490.8,2490.7,0.82291369]
[1730563292050,2.98851938,2490.8,2490.7,0.2811]
[1730563292355,2.98851938,2490.8,2490.7,0.82299227]
[1730563292549,3.26961938,2490.8,2490.7,0.82299227]
[1730563292750,1.164,2490.8,2490.7,0.82299227]
[1730563293449,3.26972297,2490.8,2490.7,0.82304236]
[1730563293643,2.98862297,2490.8,2490.7,0.82304236]
[1730563294651,2.98866376,2490.8,2490.7,0.82304236]
[1730563294852,0.8829,2490.8,2490.7,0.28111]
[1730563295043,0.8829,2490.8,2490.7,0.82308545]
[1730563295247,0.8829,2490.8,2490.7,0.28111]
[1730563295448,0.8829,2490.8,2490.7,0.82310332]
[1730563295649,2.98865977,2490.8,2490.7,0.28111]
[1730563295845,2.98865977,2490.8,2490.7,0.82310818]
[1730563296460,2.98869494,2490.8,2490.7,0.28111]
[1730563296751,2.98869494,2490.8,2490.7,0.82315911]
[1730563297148,0.8829,2490.8,2490.7,0.28111]
[1730563297353,0.8829,2490.8,2490.7,0.82317009]
[1730563297859,2.48872554,2490.8,2490.7,0.82317009]
[1730563298250,2.48872554,2490.8,2490.7,0.28111]
[1730563298251,0.253,2490.8,2490.7,0.28111]
[1730563298458,2.35888,2490.8,2490.7,0.28111]
[1730563298760,4.07273777,2490.9,2490.7,0.54212316]
[1730563298961,4.07273777,2490.9,2490.8,0.2811]
[1730563301160,3.05176734,2490.9,2490.8,0.2811]
[1730563302053,1.88007043,2491.1,2490.9,0.28109]
[1730563302054,2.62616734,2491.0,2490.9,0.28109]
[1730563304659,2.63224499,2491.0,2490.9,0.28109]
[1730563304864,2.16114043,2491.1,2491.0,0.28108]
[1730563306460,1.88007043,2491.1,2491.0,0.28108]
[1730563308866,2.16114043,2491.1,2491.0,0.28108]
[1730563309560,1.88007043,2491.1,2490.7,0.4347]
[1730563309862,2.63239953,2491.0,2490.9,0.28108]
[1730563310062,2.63239953,2491.0,2490.6,0.4212]
[1730563310260,3.09199953,2490.9,2490.8,0.28109]
[1730563310665,0.4596,2490.9,2490.8,0.82369735]
[1730563310860,2.18726043,2490.9,2490.8,0.82370735]
[1730563311066,4.81965996,2490.9,2490.7,0.28111]
[1730563311268,2.83433558,2490.8,2490.5,1.04615096]
[1730563311463,2.56163558,2490.7,2490.6,0.82380864]
[1730563311669,4.00820601,2490.7,2490.6,0.82381864]
[1730563312063,4.28931601,2490.7,2490.6,0.54269864]
[1730563312258,1.90217043,2490.7,2490.6,0.82381864]
[1730563312460,4.53456996,2490.7,2490.6,0.28112]
[1730563313067,4.53510557,2490.7,2490.6,0.28112]
[1730563313465,4.53526623,2490.7,2490.6,0.28112]
[1730563314476,1.90217043,2490.7,2490.6,0.28112]
[1730563315070,4.53545266,2490.7,2490.6,0.28112]
[1730563315665,1.90217043,2490.7,2490.3,0.862]
[1730563315861,4.08013154,2490.5,2490.4,0.82401732]
[1730563316085,1.44657043,2490.5,2490.4,0.82401732]
[1730563316283,4.08022686,2490.5,2490.4,0.82403097]
[1730563316466,4.08022686,2490.5,2490.4,0.28114]
[1730563316974,4.08022686,2490.5,2490.4,0.82392211]
[1730563317473,4.08022686,2490.5,2490.4,0.28114]
[1730563317474,2.63365643,2490.5,2490.4,0.28114]
[1730563317671,2.63365643,2490.6,2490.5,0.28113]
[1730563320172,4.81693686,2490.7,2490.6,0.28112]
[1730563320476,2.18328043,2490.7,2490.6,0.28112]
[1730563320679,4.81561737,2490.7,2490.6,0.28112]
[1730563320876,7.4479856,2490.7,2490.6,0.28112]
[1730563321176,7.44790444,2490.7,2490.5,0.28112]
[1730563321569,7.44790444,2490.7,2490.6,0.4382]
[1730563321570,4.81561737,2490.7,2490.6,0.4382]
[1730563321766,4.53450737,2490.7,2490.6,0.71932]
[1730563321977,7.16685691,2490.7,2490.6,0.71932]
[1730563322771,5.72028648,2490.7,2490.6,0.71932]
[1730563322971,2.63233694,2490.7,2490.6,1.26181839]
[1730563323380,2.63233694,2490.7,2490.6,1.71931839]